bitfinex-derivatives/quotes_BTCF0:USTF0_20250422
["timestamp","ask_amount","ask_price","bid_price","bid_amount"]
[1745311589562,0.11327387,88421.0,88420.0,0.28942993]
[1745311590751,0.00016957,88421.0,88420.0,0.28942993]
[1745311590951,0.11327387,88421.0,88420.0,0.28942993]
[1745311591558,0.11327387,88421.0,88420.0,0.29142993]
[1745311591559,0.11427387,88421.0,88420.0,0.29142993]
[1745311594063,0.00116957,88421.0,88420.0,0.29142993]
[1745311594457,0.00116957,88421.0,88420.0,0.2765056]
[1745311595560,0.11427387,88421.0,88420.0,0.2765056]
[1745311595763,0.00116957,88421.0,88420.0,0.2765056]
[1745311598664,0.03146957,88421.0,88420.0,0.2765056]
[1745311602364,0.03146957,88421.0,88420.0,0.3896016]
[1745311602563,0.03146957,88421.0,88420.0,0.81625862]
[1745311603271,0.03146957,88421.0,88420.0,1.09625862]
[1745311603968,0.03146957,88421.0,88420.0,0.81625862]
[1745311606167,0.03146957,88421.0,88420.0,0.70316262]
[1745311606373,0.03146957,88421.0,88420.0,1.09316262]
[1745311606573,0.03146957,88421.0,88420.0,0.70316262]
[1745311607273,0.0311,88428.0,88420.0,1.12316262]
[1745311607474,8e-05,88432.0,88431.0,0.1130915]
[1745311607670,8e-05,88432.0,88431.0,0.22834852]
[1745311608065,8e-05,88432.0,88431.0,0.29184852]
[1745311608576,0.1454702,88432.0,88431.0,0.29184852]
[1745311608976,0.03238,88432.0,88431.0,0.29184852]
[1745311609174,0.03438,88432.0,88431.0,0.29184852]
[1745311610061,0.03538,88432.0,88431.0,0.2795915]
[1745311610262,0.03338,88432.0,88431.0,0.2815915]
[1745311611172,0.1264702,88432.0,88431.0,0.2815915]
[1745311611361,0.01338,88432.0,88431.0,0.2815915]
[1745311611566,0.1264702,88432.0,88431.0,0.2815915]
[1745311611875,0.1264702,88432.0,88431.0,0.2509915]
[1745311612066,0.1254702,88432.0,88431.0,0.2479915]
[1745311612266,0.02201357,88432.0,88431.0,0.2509915]
[1745311613677,0.13510377,88432.0,88431.0,0.2509915]
[1745311615872,0.16530377,88432.0,88431.0,0.2509915]
[1745311616066,0.16530377,88432.0,88431.0,0.2838915]
[1745311617574,0.16530377,88432.0,88431.0,0.29918605]
[1745311618162,0.16530377,88432.0,88431.0,0.65998605]
[1745311619474,0.16530377,88432.0,88431.0,0.59418605]
[1745311619975,0.16530377,88432.0,88431.0,0.59426605]
[1745311620365,0.16530377,88432.0,88431.0,0.48117455]
[1745311620678,0.16530377,88432.0,88431.0,0.49426605]
[1745311621071,0.16530377,88432.0,88431.0,0.13338605]
[1745311621266,0.16530377,88432.0,88431.0,0.13346605]
[1745311621877,0.16530377,88432.0,88431.0,0.1181715]
[1745311624176,0.16530377,88432.0,88431.0,0.13310468]
[1745311629787,0.05221357,88432.0,88431.0,0.02001318]
[1745311631588,0.05221357,88432.0,88431.0,0.05021318]
[1745311634678,0.03983357,88432.0,88431.0,0.05021318]
[1745311636275,0.02983357,88432.0,88431.0,0.05021318]
[1745311637985,0.02983357,88432.0,88431.0,0.03528]
[1745311639284,0.02983357,88432.0,88431.0,0.05074869]
[1745311639488,0.03847882,88432.0,88431.0,0.05074869]
[1745311640887,0.15156912,88432.0,88431.0,0.16384029]
[1745311641285,0.15156912,88432.0,88431.0,0.19534029]
[1745311647497,0.15156912,88432.0,88431.0,0.1798716]
[1745311652490,0.15156912,88432.0,88431.0,0.1952478]
[1745311653091,0.18336912,88432.0,88431.0,0.1952478]
[1745311654187,0.17336912,88432.0,88431.0,0.1952478]
[1745311654595,0.14156912,88432.0,88431.0,0.1952478]
[1745311671994,0.12156912,88432.0,88431.0,0.1952478]
[1745311673396,0.12156912,88432.0,88431.0,0.1798716]
[1745311677314,0.12156912,88432.0,88431.0,0.19521595]
[1745311681411,0.00847882,88432.0,88431.0,0.19521595]
[1745311681599,0.12156902,88432.0,88431.0,0.29521595]
[1745311683729,0.0822,88436.0,88434.0,0.0565438]
[1745311683897,0.0822,88436.0,88435.0,0.2067864]
[1745311684099,0.00016968,88440.0,88439.0,0.1130813]
[1745311684307,0.00016968,88440.0,88439.0,0.3930813]
[1745311684701,0.00016968,88440.0,88439.0,0.3058813]
[1745311684905,0.00024968,88440.0,88439.0,0.19122565]
[1745311685098,0.00024968,88440.0,88439.0,0.38222565]
[1745311686115,0.00024968,88440.0,88439.0,0.38422565]
[1745311687409,0.00024968,88440.0,88439.0,0.38722565]
[1745311688615,0.00024968,88440.0,88439.0,0.38522565]
[1745311688801,0.00124968,88440.0,88439.0,0.39022565]
[1745311689001,0.00124968,88440.0,88439.0,0.80162565]
[1745311689608,0.00124968,88440.0,88439.0,0.80262565]
[1745311690311,0.00124968,88440.0,88439.0,0.95262565]
[1745311690708,0.00124968,88440.0,88439.0,0.80262565]
[1745311691507,0.00124968,88440.0,88439.0,0.93262565]
[1745311691818,0.00010801,88449.0,88439.0,0.93262565]
[1745311691819,0.00010801,88449.0,88448.0,0.1130698]
[1745311692016,0.00010801,88449.0,88448.0,0.2130698]
[1745311692705,0.00010801,88449.0,88448.0,0.29121415]
[1745311692901,0.1130635,88453.0,88452.0,0.1130647]
[1745311693110,0.12135715,88453.0,88452.0,0.1120647]
[1745311693510,0.12135715,88453.0,88452.0,0.12740905]
[1745311693720,0.12135715,88453.0,88452.0,0.19020905]
[1745311695317,0.00829365,88453.0,88452.0,0.19020905]
[1745311695519,0.1130621,88454.0,88453.0,0.1130634]
[1745311696022,0.1441621,88454.0,88453.0,0.1130634]
[1745311696203,0.1441621,88454.0,88453.0,0.12840775]
[1745311696407,0.1441621,88454.0,88453.0,0.12740775]
[1745311697120,0.0311,88454.0,88453.0,0.12740775]
[1745311697310,0.04061508,88454.0,88453.0,0.13140775]
[1745311697920,0.04061508,88454.0,88453.0,0.13240775]
[1745311698116,0.15367718,88454.0,88453.0,0.13240775]
[1745311698317,0.07101508,88454.0,88453.0,0.13240775]
[1745311699008,0.001,88454.0,88453.0,0.13240775]
[1745311699208,0.001,88454.0,88453.0,0.23240775]
[1745311699815,0.00108,88454.0,88453.0,0.23240775]
[1745311701015,0.00108,88454.0,88453.0,0.2170634]
[1745311702514,0.001,88454.0,88453.0,0.2170634]
[1745311702910,0.00199546,88454.0,88453.0,0.2170634]
[1745311703310,0.00016968,88457.0,88453.0,0.2170634]
[1745311703520,0.16162054,88460.0,88459.0,0.1130557]
[1745311703722,0.16162054,88460.0,88459.0,0.2130557]
[1745311704921,0.16262054,88460.0,88459.0,0.2130557]
[1745311705818,0.04956514,88460.0,88459.0,0.2130557]
[1745311706422,0.04956514,88460.0,88459.0,0.2444557]
[1745311706625,0.08236514,88460.0,88459.0,0.2444557]
[1745311707226,0.08236514,88460.0,88459.0,0.2474557]
[1745311707614,0.08236514,88460.0,88459.0,0.26340004]
[1745311710125,0.08236514,88460.0,88459.0,0.26240004]
[1745311710926,0.08236514,88460.0,88459.0,0.26040004]
[1745311711131,0.08236514,88460.0,88459.0,0.26340004]
[1745311712128,0.19541954,88460.0,88459.0,0.26340004]
[1745311712430,0.08236514,88460.0,88459.0,0.28097131]
[1745311713233,0.08236514,88460.0,88459.0,0.26340004]
[1745311713532,0.08236514,88460.0,88459.0,0.29390004]
[1745311715825,0.08236514,88460.0,88459.0,0.26250004]
[1745311720528,0.08236514,88460.0,88459.0,0.29560004]
[1745311721436,0.19541954,88460.0,88459.0,0.29560004]
[1745311721934,0.19441954,88460.0,88459.0,0.29560004]
[1745311722235,0.19441954,88460.0,88459.0,0.29660004]
[1745311723036,0.19441954,88460.0,88459.0,0.2806557]
[1745311724144,0.19441954,88460.0,88459.0,0.29624094]
[1745311724834,0.08136514,88460.0,88459.0,0.29624094]
[1745311725136,0.1130544,88460.0,88459.0,0.29624094]
[1745311726632,0.07122336,88462.0,88461.0,0.1130532]
[1745311726826,0.18427526,88462.0,88461.0,0.1130532]
[1745311727025,0.18427526,88462.0,88461.0,0.1732532]
[1745311727228,0.18427526,88462.0,88461.0,0.18883844]
[1745311728026,0.18427526,88462.0,88461.0,0.19083844]
[1745311738139,0.28427526,88462.0,88461.0,0.19083844]
[1745311738339,0.18427526,88462.0,88461.0,0.19083844]
[1745311739544,0.29427526,88462.0,88461.0,0.19083844]
[1745311739747,0.18427526,88462.0,88461.0,0.19083844]
[1745311741747,0.40427526,88462.0,88461.0,0.19083844]
[1745311741940,0.28427526,88462.0,88461.0,0.19083844]
[1745311742145,0.18427526,88462.0,88461.0,0.19083844]
[1745311743142,0.27427526,88462.0,88461.0,0.19083844]
[1745311743445,0.12137526,88462.0,88461.0,0.19083844]
[1745311745141,0.44441926,88462.0,88461.0,0.01376946]
[1745311745447,0.75541926,88462.0,88461.0,0.01376946]
[1745311745645,0.75541926,88462.0,88461.0,0.002]
[1745311745946,0.50541926,88462.0,88461.0,0.002]
[1745311747538,0.86621926,88462.0,88461.0,0.002]
[1745311751147,0.50541926,88462.0,88461.0,0.002]
[1745311751453,1.23301926,88462.0,88461.0,0.003]
[1745311751757,1.23301926,88462.0,88461.0,0.001]
[1745311752051,1.31969926,88462.0,88461.0,0.002]
[1745311753342,1.31969926,88462.0,88461.0,0.001]
[1745311753953,1.31969926,88462.0,88435.0,0.0567031]
[1745311753954,0.1130711,88447.0,88446.0,0.0316]
[1745311754145,0.5855511,88447.0,88446.0,0.0316]
[1745311754343,0.6796511,88447.0,88446.0,0.0316]
[1745311755250,0.6816511,88447.0,88446.0,0.0316]
[1745311757656,0.6796511,88447.0,88446.0,0.0316]
[1745311757847,0.6816511,88447.0,88446.0,0.0316]
[1745311760555,0.6181511,88447.0,88446.0,0.0316]
[1745311760746,0.5875511,88447.0,88446.0,0.1776723]
[1745311761142,0.5875511,88447.0,88446.0,0.2098723]
[1745311761357,0.2267511,88447.0,88446.0,0.2098723]
[1745311761959,0.1450711,88447.0,88446.0,0.2098723]
[1745311762159,0.2267911,88447.0,88446.0,0.2098723]
[1745311762456,0.2267911,88447.0,88446.0,0.0968]
[1745311763146,0.2578911,88447.0,88446.0,0.0968]
[1745311764755,0.2568911,88447.0,88446.0,0.0968]
[1745311765256,0.2257911,88447.0,88446.0,0.0968]
[1745311765447,0.2277911,88447.0,88446.0,0.0968]
[1745311766052,0.2257911,88447.0,88446.0,0.0968]
[1745311766452,0.2277911,88447.0,88446.0,0.0968]
[1745311767350,0.2267911,88447.0,88446.0,0.0968]
[1745311767759,0.2597911,88447.0,88446.0,0.0968]
[1745311768255,0.2607911,88447.0,88446.0,0.0968]
[1745311769045,0.2597911,88447.0,88446.0,0.0968]
[1745311769259,0.2607911,88447.0,88446.0,0.0968]
[1745311769560,0.2277911,88447.0,88446.0,0.0968]
[1745311771655,0.2257911,88447.0,88446.0,0.0968]
[1745311771856,0.2277911,88447.0,88446.0,0.0968]
[1745311772057,0.2277911,88447.0,88446.0,0.11182298]
[1745311772963,0.2578911,88447.0,88446.0,0.11182298]
[1745311773165,0.2578911,88447.0,88446.0,0.0968]
[1745311773668,0.2588911,88447.0,88446.0,0.0968]
[1745311774065,0.1771711,88447.0,88446.0,0.0968]
[1745311774364,0.2588911,88447.0,88446.0,0.0968]
[1745311775666,0.2578911,88447.0,88446.0,0.0968]
[1745311776959,0.2558911,88447.0,88446.0,0.0968]
[1745311777165,0.2578911,88447.0,88446.0,0.0968]
[1745311779565,0.6186911,88447.0,88446.0,0.0968]
[1745311781368,0.6196911,88447.0,88446.0,0.0968]
[1745311783070,0.6176911,88447.0,88446.0,0.0968]
[1745311783265,0.6196911,88447.0,88446.0,0.0968]
[1745311783657,0.6176911,88447.0,88446.0,0.0968]
[1745311783862,0.6186911,88447.0,88446.0,0.0968]
[1745311784262,0.6185311,88447.0,88446.0,0.0968]
[1745311784774,0.5884311,88447.0,88446.0,0.0968]
[1745311784965,0.5894311,88447.0,88446.0,0.0968]
[1745311785273,0.5894311,88447.0,88446.0,0.2098723]
[1745311785458,0.2286311,88447.0,88446.0,0.2098723]
[1745311785664,0.004,88447.0,88446.0,0.3098723]
[1745311786173,0.002,88447.0,88446.0,0.3098723]
[1745311786370,0.004,88447.0,88446.0,0.3098723]
[1745311786965,0.002,88447.0,88446.0,0.3118723]
[1745311787158,0.1150711,88447.0,88446.0,0.3118723]
[1745311787363,0.1130711,88447.0,88446.0,0.3118723]
[1745311787567,0.1130698,88448.0,88447.0,0.1686053]
[1745311788268,0.1130698,88448.0,88447.0,0.2315053]
[1745311789377,0.08156,88450.0,88449.0,0.1130685]
[1745311789576,0.1946272,88450.0,88449.0,0.1130685]
[1745311789770,0.1946272,88450.0,88449.0,0.2261285]
[1745311789971,0.0565329,88452.0,88451.0,0.1130659]
[1745311790580,0.0565313,88454.0,88453.0,0.1130634]
[1745311790969,0.0565313,88454.0,88453.0,0.2130634]
[1745311791278,0.0565313,88454.0,88453.0,0.4375634]
[1745311791477,0.0565313,88454.0,88453.0,0.4696634]
[1745311793780,0.0575313,88454.0,88453.0,0.4766634]
[1745311794176,0.001,88454.0,88453.0,0.4766634]
[1745311794477,0.0565298,88456.0,88455.0,0.1130608]
[1745311794867,0.0565298,88456.0,88455.0,0.1752608]
[1745311796173,0.08156,88460.0,88459.0,0.1130557]
[1745311796377,0.1946144,88460.0,88459.0,0.1130557]
[1745311796569,0.1946144,88460.0,88459.0,0.1762557]
[1745311798076,0.1946144,88460.0,88459.0,0.1772557]
[1745311798467,0.2259144,88460.0,88459.0,0.1782557]
[1745311799579,0.2563144,88460.0,88459.0,0.1782557]
[1745311799981,0.2563144,88460.0,88459.0,0.1454557]
[1745311800375,0.2563144,88460.0,88459.0,0.1764557]
[1745311800576,0.2563144,88460.0,88459.0,0.1754557]
[1745311800780,0.2563144,88460.0,88459.0,0.1764557]
[1745311801383,0.2563144,88460.0,88459.0,0.1754557]
[1745311801679,0.2573144,88460.0,88459.0,0.1754557]
[1745311803586,0.2563144,88460.0,88459.0,0.1754557]
[1745311803881,0.2563144,88460.0,88459.0,0.001]
[1745311804184,0.1695887,88457.0,88456.0,0.0565297]
[1745311804678,0.1795887,88457.0,88456.0,0.0565297]
[1745311805373,0.2421887,88457.0,88456.0,0.0565297]
[1745311805773,0.2421887,88457.0,88456.0,0.1695893]
[1745311808586,0.2421887,88457.0,88456.0,0.1705893]
[1745311810290,0.2421887,88457.0,88456.0,0.1695893]
[1745311818393,0.0565282,88459.0,88457.0,0.1695861]
[1745311818579,0.1130572,88458.0,88457.0,0.2000861]
[1745311818900,8e-05,88460.0,88459.0,0.1130557]
[1745311819187,0.05667071,88464.0,88463.0,0.2130506]
[1745311819188,0.0814,88464.0,88463.0,0.2130506]
[1745311819594,0.0814,88464.0,88463.0,0.2755506]
[1745311820184,0.1945293,88464.0,88463.0,0.2755506]
[1745311820687,0.1945293,88464.0,88463.0,0.2775506]
[1745311821889,0.1945293,88464.0,88463.0,0.2795506]
[1745311822486,0.1131293,88464.0,88463.0,0.2795506]
[1745311822991,0.1141293,88464.0,88463.0,0.2795506]
[1745311823492,0.1141293,88464.0,88463.0,0.2775506]
[1745311823697,0.1131293,88464.0,88463.0,0.3098506]
[1745311828296,8e-05,88464.0,88463.0,0.3098506]
[1745311828998,8e-05,88464.0,88463.0,0.32478388]
[1745311830401,0.1131293,88464.0,88463.0,0.32478388]
[1745311830698,8e-05,88464.0,88463.0,0.32478388]
[1745311831297,8e-05,88464.0,88463.0,0.3098506]
[1745311841116,0.1131293,88464.0,88463.0,0.3098506]
[1745311841306,0.1439293,88464.0,88463.0,0.004]
[1745311841510,0.1766293,88464.0,88463.0,0.004]
[1745311843520,0.1786293,88464.0,88463.0,0.002]
[1745311843919,0.1130532,88461.0,88460.0,0.1130536]
[1745311844411,0.1762532,88461.0,88460.0,0.1130536]
[1745311845316,0.1772532,88461.0,88460.0,0.1130536]
[1745311846326,0.1782532,88461.0,88460.0,0.1130536]
[1745311846513,0.1882532,88461.0,88460.0,0.1130536]
[1745311847015,0.1130557,88459.0,88458.0,0.1695843]
[1745311847415,0.1751557,88459.0,88458.0,0.1695843]
[1745311848418,0.1761557,88459.0,88458.0,0.1695843]
[1745311848620,0.1761557,88459.0,88458.0,0.0565283]
[1745311849217,0.1130596,88456.0,88455.0,0.0565299]
[1745311849422,0.1130634,88453.0,88451.0,0.0313]
[1745311849613,0.1130634,88453.0,88452.0,0.1130647]
[1745311849814,0.1751634,88453.0,88452.0,0.1130647]
[1745311850029,0.1751634,88453.0,88452.0,0.1443647]
[1745311851524,0.1751634,88453.0,88452.0,0.1463647]
[1745311852126,0.1751634,88453.0,88452.0,0.1453647]
[1745311852325,0.1751634,88453.0,88452.0,0.1463647]
[1745311856528,0.1751634,88453.0,88452.0,0.1771647]
[1745311859058,0.1447634,88453.0,88452.0,0.1771647]
[1745311874736,0.1754634,88453.0,88452.0,0.1771647]
[1745311881551,0.1447634,88453.0,88452.0,0.1771647]
[1745311881750,0.1447634,88453.0,88452.0,0.2086647]
[1745311888249,0.1130634,88453.0,88452.0,0.2086647]
[1745311888546,0.3608,88478.0,88452.0,0.0956]
[1745311888757,0.1940953,88460.0,88459.0,0.1130557]
[1745311888963,0.1941753,88460.0,88459.0,0.2115557]
[1745311889341,0.1940953,88460.0,88459.0,0.2115557]
[1745311889542,0.1941753,88460.0,88459.0,0.2115557]
[1745311890652,0.1941753,88460.0,88459.0,0.2135557]
[1745311892154,0.1941753,88460.0,88459.0,0.2155557]
[1745311892653,0.1941753,88460.0,88459.0,0.2145557]
[1745311895556,0.1941753,88460.0,88459.0,0.2135557]
[1745311895757,0.1131353,88460.0,88459.0,0.2135557]
[1745311896253,0.1131353,88460.0,88459.0,0.2125557]
[1745311896461,0.1131353,88460.0,88459.0,0.2135557]
[1745311897564,0.3931353,88460.0,88459.0,0.2135557]
[1745311901959,0.3931353,88460.0,88459.0,0.2125557]
[1745311902151,0.3931353,88460.0,88459.0,0.2135557]
[1745311906450,0.4255353,88460.0,88459.0,0.2135557]
[1745311913362,0.4255353,88460.0,88459.0,0.1804557]
[1745311913557,0.4572353,88460.0,88459.0,0.1804557]
[1745311914759,0.4572353,88460.0,88459.0,0.1476557]
[1745311916246,0.4572353,88460.0,88459.0,0.1777557]
[1745311916453,0.4572353,88460.0,88459.0,0.1476557]
[1745311917961,0.4572353,88460.0,88459.0,0.1466557]
[1745311918158,0.4582353,88460.0,88459.0,0.1466557]
[1745311919663,0.4592353,88460.0,88459.0,0.1456557]
[1745311920160,0.4582353,88460.0,88459.0,0.1456557]
[1745311920460,0.4592353,88460.0,88459.0,0.0326]
[1745311921470,0.8200353,88460.0,88459.0,0.1456557]
[1745311921663,0.8200353,88460.0,88459.0,0.0326]
[1745311923682,0.8190353,88460.0,88459.0,0.0326]
[1745311923879,0.8200353,88460.0,88459.0,0.0326]
[1745311925571,0.1130583,88457.0,88456.0,0.00025]
[1745311925979,0.1130621,88454.0,88453.0,0.1462629]
[1745311926874,0.1463621,88454.0,88453.0,0.0332]
[1745311927063,0.1767621,88454.0,88453.0,0.0332]
[1745311927462,0.1767621,88454.0,88453.0,0.1462634]
[1745311927669,0.1767621,88454.0,88453.0,0.0332]
[1745311927857,0.1767621,88454.0,88453.0,0.0342]
[1745311928971,0.1767621,88454.0,88453.0,0.0352]
[1745311930271,0.1767621,88454.0,88453.0,0.0342]
[1745311931992,0.1767621,88454.0,88453.0,0.0332]
[1745311932290,0.1967621,88454.0,88453.0,0.0342]
[1745311937470,0.1967621,88454.0,88453.0,0.001]
[1745311939703,0.1463621,88454.0,88453.0,0.001]
[1745311940196,0.2270421,88454.0,88453.0,0.001]
[1745311941589,0.2270421,88454.0,88453.0,0.0922]
[1745311943879,0.2270421,88454.0,88453.0,0.2052634]
[1745311944585,0.2270421,88454.0,88453.0,0.0922]
[1745311945382,0.2270421,88454.0,88453.0,0.2052634]
[1745311946484,0.1937421,88454.0,88453.0,0.2052634]
[1745311946784,0.08068,88465.0,88459.0,0.1130557]
[1745311946969,0.1131335,88461.0,88459.0,0.2130557]
[1745311947171,8e-05,88461.0,88459.0,0.2768557]
[1745311947380,0.08068,88465.0,88459.0,0.2768557]
[1745311947888,0.1130507,88463.0,88459.0,0.2768557]
[1745311948273,0.28108,88460.0,88459.0,0.2768557]
[1745311948583,0.3961344,88460.0,88459.0,0.2768557]
[1745311948983,0.28308,88460.0,88459.0,0.2768557]
[1745311949291,0.3961344,88460.0,88459.0,0.2768557]
[1745311949476,0.3941344,88460.0,88459.0,0.2808557]
[1745311950184,0.3941344,88460.0,88459.0,0.2848557]
[1745311950973,0.28108,88460.0,88459.0,0.2838557]
[1745311951177,0.3941344,88460.0,88459.0,0.4758557]
[1745311951584,0.3941344,88460.0,88459.0,0.4718557]
[1745311951788,0.3940544,88460.0,88459.0,0.4748557]
[1745311951975,0.28108,88460.0,88459.0,0.4748557]
[1745311953387,0.28008,88460.0,88459.0,0.4688557]
[1745311953587,0.28108,88460.0,88459.0,0.4758557]
[1745311954179,0.28008,88460.0,88459.0,0.4718557]
[1745311954380,0.28108,88460.0,88459.0,0.4758557]
[1745311954987,0.28108,88460.0,88459.0,0.6658557]
[1745311955688,0.28108,88460.0,88459.0,0.4758557]
[1745311955882,0.28108,88460.0,88459.0,0.8872557]
[1745311956589,0.05663271,88464.0,88463.0,0.1130506]
[1745311956590,0.00010801,88464.0,88463.0,0.1130506]
[1745311956781,0.11315731,88464.0,88463.0,0.8582506]
[1745311956977,0.11315731,88464.0,88463.0,0.8302906]
[1745311957786,0.11315731,88464.0,88463.0,0.8292906]
[1745311958488,0.11415731,88464.0,88463.0,0.8322906]
[1745311958688,0.11415731,88464.0,88463.0,0.8342906]
[1745311960992,0.11315731,88464.0,88463.0,0.8312906]
[1745311961185,0.11415731,88464.0,88463.0,0.8342906]
[1745311961887,0.11415731,88464.0,88463.0,0.8352906]
[1745311962090,0.00110801,88464.0,88463.0,0.8332906]
[1745311962291,0.00110801,88464.0,88463.0,0.8342906]
[1745311963095,0.00110801,88464.0,88463.0,0.8332906]
[1745311963395,0.00110801,88464.0,88463.0,0.8352906]
[1745311964483,0.11415731,88464.0,88463.0,0.8352906]
[1745311964700,0.11415731,88464.0,88463.0,0.5722506]
[1745311965699,0.11415731,88464.0,88463.0,0.5398506]
[1745311966099,0.11415731,88464.0,88463.0,0.5378506]
[1745311966302,0.14625731,88464.0,88463.0,0.5398506]
[1745311967303,0.17775731,88464.0,88463.0,0.5358506]
[1745311967603,0.17875731,88464.0,88463.0,0.5398506]
[1745311969295,0.17875731,88464.0,88463.0,0.5378506]
[1745311969495,0.17875731,88464.0,88463.0,0.5388506]
[1745311970101,0.17875731,88464.0,88463.0,0.1780506]
[1745311970300,0.17875731,88464.0,88463.0,0.5388506]
[1745311971100,0.17875731,88464.0,88463.0,0.5378506]
[1745311975201,0.17775731,88464.0,88463.0,0.5348506]
[1745311975388,0.17875731,88464.0,88463.0,0.5388506]
[1745311976898,0.06570801,88464.0,88463.0,0.5388506]
[1745311977101,0.00110801,88464.0,88463.0,0.7488506]
[1745311977895,0.00110801,88464.0,88463.0,0.7448506]
[1745311978100,0.00110801,88464.0,88463.0,0.5388506]
[1745311978608,0.00010801,88464.0,88463.0,0.5348506]
[1745311978805,0.00110801,88464.0,88463.0,0.5398506]
[1745311979506,0.00110801,88464.0,88463.0,0.5388506]
[1745311979709,0.00110801,88464.0,88463.0,0.5418506]
[1745311980506,0.00110801,88464.0,88463.0,0.5388506]
[1745311981511,0.00010801,88464.0,88463.0,0.5338506]
[1745311981811,0.00110801,88464.0,88463.0,0.5418506]
[1745311983899,0.00110801,88464.0,88463.0,0.5388506]
[1745311984096,0.00110801,88464.0,88463.0,0.5418506]
[1745311988803,0.00010801,88464.0,88463.0,0.5368506]
[1745311989005,0.00110801,88464.0,88463.0,0.5418506]
[1745311995009,0.03120801,88464.0,88463.0,0.4798506]
[1745311995407,0.06260801,88464.0,88463.0,0.4798506]
[1745311995705,0.06260801,88464.0,88463.0,0.5102506]
[1745311995911,0.17565731,88464.0,88463.0,0.5102506]
[1745311997213,0.17565731,88464.0,88463.0,0.5406506]
[1745311998406,0.06260801,88464.0,88463.0,0.5406506]
[1745311998606,0.17565731,88464.0,88463.0,0.5406506]
[1745311999824,0.03120801,88464.0,88463.0,0.5406506]
[1745312000217,0.00110801,88464.0,88463.0,0.5406506]
[1745312000923,0.001,88464.0,88463.0,0.5406506]
[1745312001311,0.00108,88464.0,88463.0,0.5406506]
[1745312001721,0.1141293,88464.0,88463.0,0.5406506]
[1745312001922,0.1441293,88464.0,88463.0,0.5406506]
[1745312002522,0.03108,88464.0,88463.0,0.5406506]
[1745312005017,0.1441293,88464.0,88463.0,0.5406506]
[1745312005628,0.1441293,88464.0,88463.0,0.1798506]
[1745312005823,0.1441293,88464.0,88463.0,0.5406506]
[1745312007519,0.03108,88464.0,88463.0,0.5406506]
[1745312008626,0.1441293,88464.0,88463.0,0.5406506]
[1745312009626,0.03108,88464.0,88463.0,0.5406506]
[1745312012328,0.1441293,88464.0,88463.0,0.5406506]
[1745312017645,0.1764293,88464.0,88463.0,0.5406506]
[1745312031345,0.03108,88464.0,88463.0,0.5406506]
[1745312031545,0.03108,88464.0,88463.0,0.5736506]
[1745312032835,0.1441293,88464.0,88463.0,0.5736506]
[1745312035746,0.1441293,88464.0,88463.0,0.5406506]
[1745312035937,0.1741293,88464.0,88463.0,0.5406506]
[1745312039347,0.1841293,88464.0,88463.0,0.008]
[1745312039552,0.1130532,88461.0,88460.0,0.00025]
[1745312039752,0.1230532,88461.0,88460.0,0.00025]
[1745312039954,0.1130583,88457.0,88456.0,0.1130587]
[1745312040454,0.1785583,88457.0,88456.0,0.1130587]
[1745312041146,0.1785583,88457.0,88456.0,0.1447587]
[1745312041950,0.1785583,88457.0,88456.0,0.1497587]
[1745312042452,0.1785583,88457.0,88456.0,0.1537587]
[1745312042754,0.1795583,88457.0,88456.0,0.1537587]
[1745312043743,0.1805583,88457.0,88456.0,0.1447587]
[1745312043949,0.1825583,88457.0,88456.0,0.1447587]
[1745312044657,0.1805583,88457.0,88456.0,0.1447587]
[1745312044848,0.1835583,88457.0,88456.0,0.1447587]
[1745312045050,0.1835583,88457.0,88456.0,0.1777587]
[1745312048050,0.1835583,88457.0,88456.0,0.1447587]
[1745312050544,0.0565304,88455.0,88453.0,0.00025]
[1745312050743,0.0974,88454.0,88453.0,0.00025]
[1745312050948,0.2669945,88454.0,88453.0,0.2021927]
[1745312053062,0.2679945,88454.0,88453.0,0.2031927]
[1745312054362,0.27912182,88454.0,88453.0,0.2031927]
[1745312054764,0.27912182,88454.0,88453.0,0.2352927]
[1745312056362,0.27912182,88454.0,88453.0,0.3352927]
[1745312057149,0.2354945,88454.0,88453.0,0.3352927]
[1745312057749,0.2035945,88454.0,88453.0,0.3352927]
[1745312057961,0.2035945,88454.0,88453.0,0.3656927]
[1745312058161,0.0319,88460.0,88453.0,0.3656927]
[1745312058162,0.08,88466.0,88453.0,0.1961]
[1745312058358,0.08,88466.0,88465.0,0.4738481]
[1745312058663,0.00014581,88470.0,88467.0,0.1130455]
[1745312058864,0.00014581,88470.0,88467.0,0.1443455]
[1745312059057,0.00014581,88470.0,88467.0,0.1769455]
[1745312060464,0.11318851,88470.0,88467.0,0.1769455]
[1745312060856,0.11318851,88470.0,88467.0,0.1749455]
[1745312061759,0.11318851,88470.0,88467.0,0.1769455]
[1745312062060,0.00116958,88468.0,88467.0,0.1809455]
[1745312064061,0.11421378,88468.0,88467.0,0.1819455]
[1745312064960,0.00116958,88468.0,88467.0,0.1819455]
[1745312065358,0.00116958,88468.0,88467.0,0.1809455]
[1745312065961,0.11421378,88468.0,88467.0,0.1809455]
[1745312067154,0.14631378,88468.0,88467.0,0.1799455]
[1745312067360,0.14631378,88468.0,88467.0,0.1819455]
[1745312068056,0.14631378,88468.0,88467.0,0.1799455]
[1745312068260,0.14631378,88468.0,88467.0,0.1819455]
[1745312068465,0.14631378,88468.0,88467.0,0.1809455]
[1745312069573,0.14531378,88468.0,88467.0,0.1769455]
[1745312069872,0.14631378,88468.0,88467.0,0.1809455]
[1745312070274,0.14631378,88468.0,88467.0,0.1789455]
[1745312071269,0.14631378,88468.0,88467.0,0.1799455]
[1745312071463,0.14631378,88468.0,88467.0,0.1759455]
[1745312071664,0.14631378,88468.0,88467.0,0.1789455]
[1745312072378,0.14531378,88468.0,88467.0,0.1759455]
[1745312072680,0.14631378,88468.0,88467.0,0.1789455]
[1745312072978,0.14531378,88468.0,88467.0,0.1759455]
[1745312073177,0.14631378,88468.0,88467.0,0.1789455]
[1745312075777,0.14531378,88468.0,88467.0,0.1759455]
[1745312075967,0.14631378,88468.0,88467.0,0.1789455]
[1745312077676,0.14631378,88468.0,88467.0,0.1779455]
[1745312077876,0.14631378,88468.0,88467.0,0.1789455]
[1745312078478,0.14631378,88468.0,88467.0,0.1799455]
[1745312079774,0.14531378,88468.0,88467.0,0.1759455]
[1745312079974,0.14631378,88468.0,88467.0,0.1799455]
[1745312080381,0.03326958,88468.0,88467.0,0.1799455]
[1745312080584,0.14631378,88468.0,88467.0,0.1799455]
[1745312081483,0.14631378,88468.0,88467.0,0.1789455]
[1745312081988,0.14631378,88468.0,88467.0,0.5397455]
[1745312082387,0.14631378,88468.0,88467.0,0.5407455]
[1745312084384,0.14631378,88468.0,88467.0,0.5397455]
[1745312084585,0.14631378,88468.0,88467.0,0.5407455]
[1745312085386,0.14631378,88468.0,88467.0,0.5397455]
[1745312085585,0.14631378,88468.0,88467.0,0.5387455]
[1745312086288,0.14631378,88468.0,88467.0,0.5397455]
[1745312089097,0.14631378,88468.0,88467.0,0.5387455]